bitfinex/quotes_SOLUSD_20260125
["timestamp","ask_amount","ask_price","bid_price","bid_amount"]
[1769369549736,5.49188955,119.68,119.64,4.2249752]
[1769369550728,5.49188955,119.71,119.65,4.2249752]
[1769369550905,5.49188955,119.71,119.64,5.49188955]
[1769369550906,5.49188955,119.72,119.67,4.2249752]
[1769369551435,5.49188955,119.71,119.67,4.2249752]
[1769369552516,9.94834464,119.71,119.66,8.35664612]
[1769369552836,9.94834464,119.71,119.66,4.2249752]
[1769369553321,9.94834464,119.71,119.66,12.58190545]
[1769369553510,5.49188955,119.67,119.64,4.15532425]
[1769369554331,5.49188955,119.67,119.62,20.89912643]
[1769369554332,5.49188955,119.67,119.62,12.51483386]
[1769369554531,5.49188955,119.67,119.63,12.51436575]
[1769369554731,5.49188955,119.67,119.63,4.15532425]
[1769369555035,9.89905606,119.65,119.6,4.15532425]
[1769369555215,5.49188955,119.65,119.6,4.15532425]
[1769369555409,5.49188955,119.65,119.59,26.39547161]
[1769369555410,5.49188955,119.65,119.61,4.15532425]
[1769369555613,5.49188955,119.64,119.61,4.15532425]
[1769369555833,9.89905606,119.66,119.61,4.15532425]
[1769369556129,5.49188955,119.64,119.59,12.51698214]
[1769369556319,9.89905606,119.65,119.6,12.51650889]
[1769369556830,9.89905606,119.65,119.6,4.15532425]
[1769369557009,5.49188955,119.64,119.6,4.15532425]
[1769369558639,5.49188955,119.66,119.61,4.15532425]
[1769369558934,4.40716651,119.64,119.59,4.15532425]
[1769369559112,5.49188955,119.62,119.57,8.36321748]
[1769369559314,5.49188955,119.62,119.58,12.51778726]
[1769369559935,5.49188955,119.62,119.58,4.15532425]
[1769369560134,5.49188955,119.62,119.57,8.36301557]
[1769369560135,5.49188955,119.59,119.55,23.2]
[1769369560318,5.49188955,119.59,119.54,0.1]
[1769369560319,5.49188955,119.57,119.54,0.1]
[1769369560523,9.89905606,119.58,119.54,0.1]
[1769369560925,4.40716651,119.58,119.54,0.1]
[1769369561126,9.89905606,119.59,119.54,4.25532425]
[1769369561328,9.89905606,119.59,119.54,12.62030729]
[1769369562041,5.49188955,119.58,119.54,12.62030729]
[1769369562923,5.49188955,119.56,119.54,4.25532425]
[1769369563250,5.49188955,119.55,119.54,0.1]
[1769369563540,5.49188955,119.55,119.48,58.69188955]
[1769369563541,9.89905606,119.55,119.49,12.52400597]
[1769369563748,9.89905606,119.55,119.49,4.15532425]
[1769369563749,5.49188955,119.52,119.49,4.15532425]
[1769369564245,5.49188955,119.53,119.49,4.15532425]
[1769369564750,5.49188955,119.53,119.49,12.52403375]
[1769369565551,5.49188955,119.54,119.5,4.15532425]
[1769369565736,5.49188955,119.52,119.48,34.15532425]
[1769369566136,4.40716651,119.54,119.48,34.15532425]
[1769369566137,5.49188955,119.51,119.48,30.0]
[1769369567339,9.89905606,119.52,119.48,30.0]
[1769369568330,9.89905606,119.52,119.48,42.52481662]
[1769369568331,5.49188955,119.52,119.48,42.52481662]
[1769369568529,4.40716651,119.57,119.51,4.15532425]
[1769369568726,5.49188955,119.54,119.49,4.15532425]
[1769369568948,4.40716651,119.53,119.48,30.0]
[1769369569143,5.49188955,119.52,119.48,30.0]
[1769369569445,4.40716651,119.53,119.48,42.5247825]
[1769369569446,9.89905606,119.53,119.48,42.5247825]
[1769369569622,5.49188955,119.53,119.49,4.15532425]
[1769369569822,4.40716651,119.53,119.48,38.36947919]
[1769369570026,5.49188955,119.51,119.48,30.0]
[1769369570958,9.89905606,119.52,119.48,30.0]
[1769369571252,5.49188955,119.49,119.48,30.0]
[1769369571551,5.49188955,119.49,119.4,47.21855589]
[1769369571552,8.68946389,119.48,119.41,4.15532425]
[1769369571752,4.37,119.48,119.43,4.15532425]
[1769369571925,4.37,119.48,119.45,4.15532425]
[1769369572854,4.37,119.48,119.46,4.15532425]
[1769369573242,5.49188955,119.53,119.48,4.15532425]
[1769369573447,9.89905606,119.53,119.48,9.6472138]
[1769369573847,9.89905606,119.51,119.46,4.15532425]
[1769369574147,4.40716651,119.51,119.46,9.6472138]
[1769369574649,4.40716651,119.51,119.46,18.01761715]
[1769369574848,4.40716651,119.51,119.47,9.6472138]
[1769369575348,4.40716651,119.51,119.47,4.15532425]
[1769369575554,4.40716651,119.51,119.46,8.37040335]
[1769369575851,9.89905606,119.51,119.46,8.37040335]
[1769369576054,4.40716651,119.51,119.46,18.01761715]
[1769369576258,9.89905606,119.51,119.46,12.5257276]
[1769369576552,9.89905606,119.51,119.46,18.01761715]
[1769369576859,5.49188955,119.52,119.47,9.6472138]
[1769369577450,9.89905606,119.51,119.47,4.15532425]
[1769369577632,9.89905606,119.51,119.46,5.49188955]
[1769369577827,9.89905606,119.51,119.46,9.6472138]
[1769369578252,4.40716651,119.51,119.46,12.52615601]
[1769369578454,4.40716651,119.5,119.45,13.86346602]
[1769369578640,9.89905606,119.49,119.44,12.52734745]
[1769369579037,4.40716651,119.44,119.39,4.15532425]
[1769369579243,8.36919199,119.49,119.38,4.15532425]
[1769369579244,4.40716651,119.43,119.38,4.15532425]
[1769369579550,9.89905606,119.46,119.41,9.6472138]
[1769369579757,4.40716651,119.46,119.37,34.84141543]
[1769369579960,5.49188955,119.43,119.39,4.15532425]
[1769369580162,4.40716651,119.48,119.42,9.6472138]
[1769369580326,10.85275143,119.52,119.42,4.15532425]
[1769369580327,5.49188955,119.46,119.42,4.15532425]
[1769369580655,9.89905606,119.47,119.43,4.15532425]
[1769369580862,4.40716651,119.46,119.39,4.15532425]
[1769369581029,4.40716651,119.46,119.4,4.15532425]
[1769369581228,5.49188955,119.45,119.39,12.53068427]
[1769369581556,9.89905606,119.44,119.39,4.15532425]
[1769369581726,4.40716651,119.47,119.38,4.15532425]
[1769369581927,4.40716651,119.47,119.37,64.16173151]
[1769369582154,5.49188955,119.47,119.41,5.49188955]
[1769369582331,5.49188955,119.61,119.49,4.15532425]
[1769369582533,5.49188955,119.56,119.51,5.49188955]
[1769369582849,5.49188955,119.55,119.49,4.15532425]
[1769369583030,29.26421404,119.6,119.53,9.98090383]
[1769369583031,4.368287,119.6,119.53,9.98090383]
[1769369583234,5.49188955,119.61,119.51,4.48901428]
[1769369583427,5.49188955,119.58,119.51,4.48901428]
[1769369583625,5.49188955,119.56,119.5,12.85714066]
[1769369583831,5.49188955,119.56,119.51,9.98090383]
[1769369584039,5.49188955,119.55,119.49,9.98090383]
[1769369584234,9.5446134,119.55,119.49,9.98090383]
[1769369584651,9.5446134,119.55,119.49,18.3492851]
[1769369584846,4.05272385,119.59,119.53,9.98090383]
[1769369585051,9.5446134,119.59,119.53,9.98090383]
[1769369585230,4.05272385,119.59,119.54,9.98090383]
[1769369585432,4.05272385,119.61,119.55,4.48901428]
[1769369585637,4.05272385,119.6,119.55,5.49188955]
[1769369585834,50.0,119.58,119.55,9.98090383]
[1769369586041,50.0,119.58,119.53,4.48901428]
[1769369586227,4.05272385,119.6,119.55,4.48901428]
[1769369586429,4.05272385,119.63,119.59,5.49188955]
[1769369586633,41.83220521,119.76,119.59,5.49188955]
[1769369586634,4.05272385,119.65,119.6,5.49188955]
[1769369586932,4.05272385,119.64,119.6,5.49188955]
[1769369587136,4.05272385,119.64,119.59,9.98090383]
[1769369587366,5.49188955,119.63,119.58,9.98090383]
[1769369587863,9.5446134,119.63,119.58,9.98090383]
[1769369588653,4.05272385,119.63,119.59,5.49188955]
[1769369589963,4.05272385,119.69,119.63,4.48901428]
[1769369590165,4.05272385,119.63,119.56,4.48901428]
[1769369590359,5.49188955,119.62,119.57,9.98090383]
[1769369590551,9.5446134,119.63,119.57,9.98090383]
[1769369590964,9.5446134,119.63,119.57,4.48901428]
[1769369591159,9.5446134,119.63,119.58,9.98090383]
[1769369591346,4.05272385,119.63,119.58,9.98090383]
[1769369591762,9.5446134,119.63,119.58,9.98090383]
[1769369592073,4.05272385,119.63,119.59,5.49188955]
[1769369592260,4.05272385,119.6,119.54,4.48901428]
[1769369592466,8.35911661,119.63,119.52,23.22]
[1769369592467,4.05272385,119.58,119.52,23.22]
[1769369592665,29.25688472,119.63,119.48,20.10094394]
[1769369592666,9.5446134,119.55,119.49,5.49188955]
[1769369592849,9.5446134,119.55,119.5,5.49188955]
[1769369593056,4.05272385,119.53,119.48,24.58995822]
[1769369593368,9.5446134,119.53,119.48,20.10094394]
[1769369594072,5.49188955,119.52,119.48,20.10094394]
[1769369594262,9.5446134,119.53,119.48,20.10094394]
[1769369594457,4.05272385,119.51,119.48,20.10094394]
[1769369594667,4.01219661,119.48,119.42,27.70901428]
[1769369594853,5.49188955,119.49,119.43,9.98090383]
[1769369595055,47.29723381,119.61,119.49,4.48901428]
[1769369595056,4.01219661,119.56,119.49,4.48901428]
[1769369595264,5.49188955,119.54,119.49,4.48901428]
[1769369595455,9.50408616,119.55,119.5,5.49188955]
[1769369595671,9.50408616,119.58,119.52,9.74496606]
[1769369596074,5.49188955,119.53,119.45,4.25307651]
[1769369596266,5.49188955,119.57,119.52,4.25307651]
[1769369596574,9.50408616,119.56,119.5,5.49188955]
[1769369596778,4.01219661,119.55,119.5,5.49188955]
[1769369596968,9.50408616,119.56,119.5,4.25307651]
[1769369597173,9.50408616,119.56,119.5,9.74496606]
[1769369597376,4.01219661,119.56,119.51,9.74496606]
[1769369597567,4.01219661,119.58,119.52,9.74496606]
[1769369597771,4.01219661,119.58,119.53,5.49188955]
[1769369598156,50.0,119.57,119.53,9.74496606]
[1769369598554,50.0,119.57,119.54,5.49188955]
[1769369598754,50.0,119.57,119.56,5.49188955]
[1769369599084,50.0,119.57,119.54,5.49188955]
[1769369599280,4.01219661,119.56,119.49,4.25307651]
[1769369599480,5.49188955,119.57,119.51,9.74496606]
[1769369599687,9.50408616,119.58,119.52,5.49188955]
[1769369599984,9.50408616,119.56,119.5,5.49188955]
[1769369600185,5.49188955,119.55,119.49,12.6217962]
[1769369600377,5.49188955,119.55,119.49,9.74496606]
[1769369600683,9.50408616,119.56,119.5,9.74496606]
[1769369600886,5.49188955,119.55,119.5,9.74496606]
[1769369601673,9.50408616,119.56,119.5,9.74496606]
[1769369601885,5.49188955,119.55,119.5,4.25307651]
[1769369602083,4.01219661,119.58,119.51,4.25307651]
[1769369602266,5.49188955,119.57,119.52,4.25307651]
[1769369602464,5.49188955,119.57,119.52,9.74496606]
[1769369602770,5.49188955,119.57,119.52,4.25307651]
[1769369602971,5.49188955,119.57,119.52,9.74496606]
[1769369603181,55.49188955,119.56,119.52,4.25307651]
[1769369603384,5.49188955,119.54,119.5,4.25307651]
[1769369603575,5.50654194,119.55,119.5,4.25307651]
[1769369603968,5.50654194,119.51,119.45,9.75961845]
[1769369604289,5.50654194,119.51,119.46,4.25307651]
[1769369604791,5.50654194,119.49,119.44,9.75961845]
[1769369605296,5.50654194,119.48,119.44,4.25307651]
[1769369605463,5.50654194,119.48,119.37,76.72766794]
[1769369605464,5.50654194,119.45,119.37,39.09449194]
[1769369605669,5.50654194,119.42,119.37,39.09449194]
[1769369605965,5.50654194,119.43,119.37,44.60103388]
[1769369606378,4.01219661,119.44,119.37,44.60103388]
[1769369606580,5.50654194,119.43,119.37,52.97814997]
[1769369606769,5.50654194,119.42,119.38,4.25307651]
[1769369606976,5.50654194,119.43,119.38,4.25307651]
[1769369607367,5.50654194,119.44,119.39,4.25307651]
[1769369607565,5.50654194,119.41,119.37,39.09449194]
[1769369607766,5.50654194,119.42,119.37,44.60103388]
[1769369607990,5.50654194,119.43,119.38,5.50654194]
[1769369608287,5.50654194,119.41,119.37,39.09449194]
[1769369608473,5.50654194,119.42,119.37,39.09449194]
[1769369608678,4.01219661,119.44,119.37,39.09449194]
[1769369608679,5.50654194,119.41,119.37,39.09449194]
[1769369608977,4.01219661,119.43,119.37,39.09449194]
[1769369609176,4.01219661,119.47,119.41,5.50654194]
[1769369609490,5.50654194,119.46,119.42,4.25307651]
[1769369609691,5.50654194,119.45,119.4,4.25307651]
[1769369610080,5.50654194,119.43,119.38,9.75961845]
[1769369610268,5.50654194,119.43,119.38,4.25307651]
[1769369610584,8.37093953,119.47,119.38,4.25307651]
[1769369610585,5.50654194,119.42,119.38,4.25307651]
[1769369610793,5.50654194,119.39,119.37,34.76076622]
[1769369610990,3.89303035,119.45,119.39,4.25307651]
[1769369611182,5.50654194,119.44,119.39,4.25307651]
[1769369611488,5.50654194,119.52,119.39,4.25307651]
[1769369611489,5.50654194,119.5,119.44,4.25307651]
[1769369611688,5.50654194,119.5,119.45,9.75961845]
[1769369611896,5.50654194,119.5,119.46,4.25307651]
[1769369612592,5.50654194,119.48,119.44,4.25307651]
[1769369613092,5.50654194,119.52,119.42,5.50654194]
[1769369613093,5.50654194,119.47,119.42,9.83926998]
[1769369613475,3.89303035,119.49,119.42,9.83926998]
[1769369613476,3.89303035,119.49,119.43,4.33272804]
[1769369613675,9.39957229,119.49,119.43,9.83926998]
[1769369613979,55.50654194,119.48,119.43,4.33272804]
[1769369614180,50.0,119.48,119.43,9.83926998]
[1769369614493,5.50654194,119.48,119.42,12.7063255]
[1769369614691,5.50654194,119.46,119.4,18.21421462]
[1769369614886,5.50654194,119.46,119.41,4.33272804]
[1769369615401,5.50654194,119.45,119.39,18.21500323]
[1769369615691,5.50654194,119.45,119.4,9.83926998]
[1769369615902,5.34408856,119.5,119.44,4.33272804]
[1769369616090,5.36086188,119.54,119.46,4.33272804]
[1769369616390,5.50654194,119.51,119.46,9.83926998]
[1769369616598,5.50654194,119.51,119.46,4.33272804]
[1769369616890,9.39957229,119.52,119.46,9.83926998]
[1769369617105,5.50654194,119.53,119.47,9.83926998]
[1769369617610,5.50654194,119.53,119.48,9.83926998]
[1769369617794,9.39957229,119.53,119.47,5.50654194]
[1769369617991,9.39957229,119.53,119.47,9.83926998]
[1769369618185,9.39957229,119.53,119.48,5.50654194]
[1769369618686,9.39957229,119.53,119.47,9.83926998]
[1769369618887,5.50654194,119.54,119.49,9.83926998]
[1769369619087,5.50654194,119.54,119.46,29.29847441]
[1769369619088,5.50654194,119.58,119.52,9.83926998]
[1769369619289,5.50654194,119.58,119.53,4.33272804]
[1769369619491,3.89303035,119.59,119.54,4.33272804]
[1769369619691,9.39957229,119.59,119.54,4.33272804]
[1769369620014,3.89303035,119.64,119.58,9.83926998]
[1769369620312,5.50654194,119.63,119.58,9.83926998]
[1769369620491,5.50654194,119.63,119.58,4.33272804]
[1769369620685,9.39957229,119.63,119.58,4.33272804]
[1769369620891,5.50654194,119.62,119.56,9.83926998]
[1769369621085,5.50654194,119.61,119.56,4.33272804]
[1769369621298,5.50654194,119.61,119.56,9.83926998]
[1769369621496,9.39957229,119.59,119.54,4.33272804]
[1769369621693,5.50654194,119.58,119.54,4.33272804]
[1769369622415,5.50654194,119.57,119.52,4.33272804]
[1769369622591,5.50654194,119.56,119.52,4.33272804]
[1769369623402,5.50654194,119.57,119.52,4.33272804]
[1769369623601,5.50654194,119.56,119.52,4.33272804]
[1769369624503,5.50654194,119.55,119.52,4.33272804]
[1769369624703,5.50654194,119.55,119.5,4.33272804]
[1769369625090,3.89303035,119.57,119.5,4.33272804]
[1769369625293,5.50654194,119.54,119.49,4.33272804]
[1769369625487,5.50654194,119.56,119.51,4.33272804]
[1769369625714,5.50654194,119.58,119.53,4.33272804]
[1769369625895,5.50654194,119.58,119.53,9.83926998]
[1769369626092,5.50654194,119.61,119.55,9.83926998]
[1769369626415,12.25263153,119.63,119.57,4.33272804]
[1769369626723,5.50654194,119.61,119.57,4.33272804]
[1769369627312,5.50654194,119.63,119.59,4.33272804]
[1769369627617,5.50654194,119.62,119.57,5.50654194]
[1769369627916,5.50654194,119.63,119.58,5.50654194]
[1769369628094,20.89148564,119.67,119.6,5.50654194]
[1769369628095,9.78557213,119.66,119.6,5.50654194]
[1769369628290,5.50654194,119.64,119.58,5.50654194]
[1769369628706,4.27903019,119.65,119.59,5.50654194]
[1769369628919,5.50654194,119.64,119.59,5.50654194]
[1769369629218,5.50654194,119.64,119.56,23.22]
[1769369629219,5.50654194,119.63,119.57,8.36305731]
[1769369629398,9.78557213,119.64,119.58,5.50654194]
[1769369629600,5.50654194,119.61,119.56,4.33272804]
[1769369629793,9.78557213,119.62,119.57,4.33272804]
[1769369631614,4.27903019,119.65,119.58,9.83926998]
[1769369631819,5.50654194,119.61,119.56,12.69652464]
[1769369632030,5.50654194,119.61,119.57,4.33272804]
[1769369632331,8.35789189,119.65,119.58,4.33272804]
[1769369632332,4.27903019,119.64,119.58,4.33272804]
[1769369632514,9.78557213,119.64,119.58,9.83926998]
[1769369632819,5.50654194,119.63,119.58,4.33272804]
[1769369633000,5.50654194,119.66,119.61,4.33272804]
[1769369633396,5.50654194,119.66,119.61,9.83926998]
[1769369633818,0.2,119.68,119.63,9.83926998]
[1769369633819,5.70654194,119.68,119.63,9.83926998]
[1769369634021,5.50654194,119.67,119.63,4.33272804]
[1769369634223,9.98557213,119.68,119.63,4.33272804]
[1769369634421,9.98557213,119.68,119.63,18.1982056]
[1769369634720,0.2,119.68,119.65,5.50654194]
[1769369635605,0.2,119.68,119.64,9.83926998]
[1769369636004,5.50654194,119.67,119.62,12.6920855]
[1769369636207,0.2,119.68,119.63,13.86559811]
[1769369636411,0.2,119.68,119.64,4.33272804]
[1769369636617,0.2,119.68,119.64,9.83926998]
[1769369636811,0.2,119.68,119.64,4.33272804]
[1769369637011,0.2,119.68,119.64,9.83926998]
[1769369637206,0.2,119.68,119.63,8.35905617]
[1769369637207,9.98557213,119.68,119.62,9.83926998]
[1769369637407,5.50654194,119.66,119.62,4.33272804]
[1769369637630,9.78557213,119.67,119.62,4.33272804]
[1769369637928,5.50654194,119.66,119.62,4.33272804]
[1769369638305,9.78557213,119.67,119.62,4.33272804]
[1769369638826,9.78557213,119.67,119.62,9.83926998]
[1769369639014,5.70654194,119.68,119.63,4.33272804]
[1769369639327,0.2,119.68,119.63,9.83926998]
[1769369639718,0.2,119.68,119.66,5.50654194]
[1769369639922,0.2,119.68,119.66,9.83926998]
[1769369640126,0.2,119.68,119.66,4.33272804]
[1769369640640,0.2,119.68,119.64,4.33272804]
[1769369640804,0.2,119.68,119.64,9.83926998]
[1769369641202,9.78557213,119.66,119.6,9.83926998]
[1769369641409,4.47903019,119.68,119.62,9.83926998]
[1769369641602,4.47903019,119.68,119.63,4.33272804]
[1769369641812,9.98557213,119.68,119.63,4.33272804]
[1769369642030,5.50654194,119.67,119.63,4.33272804]
[1769369642237,5.50654194,119.65,119.61,4.33272804]
[1769369642398,5.50654194,119.66,119.61,9.83926998]
[1769369642600,4.27903019,119.67,119.61,4.33272804]
[1769369642819,0.2,119.68,119.64,4.33272804]
[1769369643108,10.00050472,119.65,119.6,18.20036186]
[1769369643304,5.50654194,119.65,119.61,4.17945588]
[1769369644013,10.00050472,119.66,119.61,4.17945588]
[1769369644218,5.50654194,119.65,119.61,4.17945588]
[1769369644419,10.00050472,119.66,119.61,4.17945588]
[1769369644724,10.00050472,119.66,119.61,9.68599782]
[1769369645339,5.50654194,119.64,119.59,18.04760714]
[1769369645515,5.50654194,119.64,119.59,12.5410652]
[1769369645831,5.50654194,119.6,119.55,18.05039434]
[1769369646010,5.50654194,119.6,119.56,4.17945588]
[1769369647030,5.50654194,119.6,119.55,18.05031248]
[1769369647408,4.49396278,119.62,119.56,4.17945588]
[1769369647608,5.50654194,119.61,119.56,4.17945588]
[1769369647804,5.50654194,119.61,119.51,4.17945588]
[1769369647805,5.50654194,119.57,119.51,4.17945588]
[1769369648024,5.50654194,119.54,119.51,4.17945588]
[1769369648227,5.50654194,119.55,119.51,12.54692204]
[1769369648720,5.50654194,119.58,119.54,4.17945588]
[1769369649238,5.50654194,119.57,119.54,4.17945588]
[1769369649438,4.49396278,119.58,119.52,4.17945588]
[1769369649729,5.50654194,119.55,119.52,4.17945588]
[1769369649907,5.50654194,119.53,119.49,12.54797612]
[1769369650916,10.86740382,119.61,119.5,4.17945588]
[1769369650917,5.50654194,119.54,119.5,4.17945588]
[1769369651736,5.50654194,119.53,119.5,4.17945588]
[1769369652925,4.49396278,119.56,119.5,4.17945588]
[1769369653127,5.50654194,119.55,119.5,12.54755006]
[1769369653316,5.50654194,119.54,119.5,12.54755006]
[1769369653515,5.50654194,119.53,119.48,4.17945588]
[1769369653726,5.50654194,119.52,119.48,4.17945588]
[1769369653945,8.36430243,119.56,119.47,8.36983636]
[1769369653946,5.50654194,119.51,119.47,8.36983636]
[1769369654116,5.50654194,119.51,119.47,12.54929224]
[1769369654316,5.50654194,119.51,119.47,4.17945588]
[1769369654518,5.50654194,119.5,119.47,4.17945588]
[1769369654751,4.49396278,119.52,119.47,4.17945588]
[1769369654752,5.50654194,119.51,119.47,4.17945588]
[1769369655041,5.50654194,119.53,119.49,4.17945588]
[1769369655421,5.50654194,119.54,119.49,4.17945588]
[1769369656127,5.50654194,119.54,119.5,4.29277192]
[1769369656636,12.43222328,119.57,119.5,4.29277192]
[1769369656837,5.50654194,119.56,119.52,4.29277192]
[1769369658026,5.50654194,119.53,119.49,4.29277192]
[1769369658230,5.50654194,119.52,119.48,4.29277192]
[1769369658552,9.57498441,119.52,119.47,9.79931386]
[1769369658843,5.50654194,119.51,119.47,4.29277192]
[1769369659540,5.50654194,119.5,119.47,4.29277192]
[1769369660243,9.57498441,119.48,119.43,4.29277192]
[1769369660537,5.50654194,119.47,119.43,4.29277192]
[1769369660735,5.50654194,119.46,119.42,4.29277192]
[1769369661133,5.50654194,119.43,119.37,34.72104547]
[1769369661333,5.50654194,119.4,119.37,39.01381739]
[1769369661550,9.57498441,119.42,119.37,39.01381739]
[1769369661723,5.34408856,119.45,119.33,4.29277192]
[1769369661724,5.50654194,119.38,119.33,4.29277192]
[1769369661926,5.50654194,119.37,119.33,4.29277192]
[1769369662142,4.06844247,119.39,119.33,4.29277192]
[1769369662143,5.50654194,119.36,119.33,4.29277192]
[1769369662640,5.50654194,119.37,119.33,4.29277192]
[1769369662841,5.50654194,119.38,119.34,4.29277192]
[1769369663155,5.50654194,119.4,119.35,4.29277192]
[1769369663331,5.50654194,119.39,119.35,4.29277192]
[1769369664754,5.50654194,119.4,119.35,18.17798149]
[1769369664941,5.50654194,119.39,119.35,12.67143955]
[1769369665438,5.50654194,119.42,119.37,4.29277192]
[1769369665639,5.5177866,119.42,119.37,4.29277192]
[1769369665863,5.5177866,119.41,119.37,4.29277192]
[1769369666042,4.02775804,119.44,119.37,4.29277192]
[1769369667033,12.39879466,119.46,119.39,4.29277192]
[1769369667256,5.5177866,119.45,119.41,4.29277192]
[1769369667464,5.5177866,119.46,119.42,4.29277192]
[1769369668248,5.5177866,119.45,119.41,4.29277192]
[1769369668555,9.54554464,119.47,119.42,9.81055852]
[1769369668759,5.5177866,119.46,119.42,4.29277192]
[1769369670357,5.5177866,119.45,119.4,4.29277192]
[1769369671280,5.5177866,119.45,119.4,18.18556286]
[1769369671767,9.54554464,119.46,119.41,9.81055852]
[1769369671972,5.5177866,119.45,119.41,4.29277192]
[1769369672475,12.39757723,119.48,119.42,4.29277192]
[1769369672651,5.5177866,119.47,119.42,9.81055852]
[1769369672972,5.5177866,119.48,119.43,9.81055852]
[1769369674056,5.5177866,119.44,119.39,4.47073469]
[1769369674372,4.02775804,119.46,119.39,4.47073469]
[1769369674666,5.34408856,119.47,119.39,4.47073469]
[1769369674667,5.5177866,119.44,119.39,9.98852129]
[1769369675466,5.5177866,119.44,119.4,4.47073469]
[1769369676260,5.5177866,119.46,119.42,4.47073469]
[1769369676561,5.5177866,119.43,119.38,4.47073469]
[1769369676768,5.5177866,119.42,119.38,4.47073469]
[1769369676940,5.5177866,119.41,119.36,4.47073469]
[1769369677268,5.5177866,119.4,119.36,4.47073469]
[1769369677639,5.5177866,119.39,119.36,4.47073469]
[1769369678056,5.5177866,119.38,119.34,4.47073469]
[1769369678255,5.5177866,119.37,119.35,4.47073469]
[1769369678437,5.5177866,119.38,119.35,4.47073469]
[1769369679250,5.5177866,119.37,119.33,4.47073469]
[1769369680574,4.02775804,119.4,119.34,4.47073469]
[1769369680790,5.5177866,119.39,119.35,4.47073469]
[1769369681571,5.5177866,119.4,119.35,9.98852129]
[1769369681779,5.5177866,119.4,119.36,4.47073469]
[1769369682643,5.5177866,119.41,119.36,4.47073469]
[1769369682852,4.02775804,119.44,119.38,4.47073469]
[1769369683054,5.5177866,119.42,119.38,4.47073469]
[1769369683272,5.5177866,119.43,119.38,9.98852129]
[1769369683444,4.02775804,119.46,119.4,4.47073469]
[1769369683644,5.5177866,119.45,119.4,9.98852129]
[1769369683844,4.02775804,119.46,119.41,9.98852129]
[1769369684060,5.5177866,119.45,119.41,4.47073469]
[1769369684246,5.5177866,119.43,119.39,4.47073469]
[1769369684866,5.5177866,119.42,119.39,4.47073469]
[1769369685257,5.5177866,119.4,119.35,12.84922715]
[1769369685467,4.02775804,119.42,119.35,12.84922715]
[1769369685774,5.5177866,119.4,119.35,12.84922715]
[1769369686066,5.5177866,119.39,119.35,4.47073469]
[1769369686575,5.5177866,119.38,119.35,4.47073469]
[1769369687257,5.5177866,119.39,119.35,4.47073469]
[1769369687478,5.5177866,119.4,119.35,9.98852129]
[1769369687650,5.5177866,119.41,119.36,4.47073469]
[1769369687850,5.5177866,119.41,119.37,4.47073469]
[1769369689695,5.5177866,119.38,119.33,27.73073469]
[1769369689982,5.5177866,119.37,119.33,27.73073469]
[1769369690894,5.5177866,119.37,119.34,4.47073469]
[1769369691194,5.5177866,119.38,119.34,4.47073469]
[1769369691472,5.5177866,119.37,119.34,4.47073469]
[1769369692073,5.5177866,119.39,119.34,4.47073469]
[1769369692290,5.34408856,119.43,119.36,5.5177866]
[1769369692485,5.5177866,119.43,119.38,4.47073469]
[1769369692876,4.02775804,119.44,119.39,4.47073469]
[1769369693096,5.5177866,119.44,119.4,4.47073469]
[1769369693404,5.5177866,119.43,119.4,4.47073469]
[1769369693587,5.5177866,119.42,119.4,4.47073469]
[1769369693899,12.39976077,119.45,119.4,4.47073469]
[1769369694108,5.5177866,119.42,119.38,4.47073469]
[1769369694310,29.30126183,119.45,119.37,4.47073469]
[1769369694311,5.5177866,119.41,119.37,4.47073469]
[1769369694907,5.5177866,119.41,119.25,4.36995764]
[1769369694908,4.05780191,119.29,119.25,4.36995764]
[1769369695114,5.5177866,119.26,119.2,5.5177866]
[1769369695402,4.05780191,119.28,119.23,5.5177866]
[1769369695601,5.5177866,119.29,119.23,5.5177866]
[1769369695814,10.86187516,119.34,119.28,5.5177866]
[1769369695815,4.05780191,119.34,119.28,5.5177866]
[1769369695973,5.5177866,119.33,119.28,5.5177866]
[1769369696174,4.05780191,119.34,119.28,5.5177866]
[1769369696397,4.05780191,119.38,119.25,10.86187516]
[1769369696598,17.95106188,119.4,119.26,25.16]
[1769369696802,12.43327528,119.4,119.35,5.5177866]
[1769369697101,4.05780191,119.4,119.36,28.7777866]
[1769369697276,17.94988922,119.42,119.36,28.7777866]
[1769369697477,9.57558851,119.41,119.37,23.26]
[1769369697677,4.05780191,119.41,119.38,23.26]
[1769369698503,9.57558851,119.41,119.39,23.26]
[1769369699073,12.43258916,119.41,119.39,23.26]
[1769369699278,4.05780191,119.4,119.35,5.5177866]
[1769369699497,4.05780191,119.4,119.36,23.26]
[1769369700601,4.05780191,119.4,119.36,28.7777866]
[1769369701311,12.43314817,119.4,119.36,28.7777866]
[1769369701809,12.43314817,119.4,119.37,5.5177866]
[1769369702009,12.43314817,119.4,119.36,28.7777866]
[1769369702387,4.05780191,119.43,119.38,5.5177866]
[1769369702606,4.05780191,119.5,119.42,9.98852129]
[1769369702805,12.62549363,119.51,119.47,5.5177866]
[1769369702982,0.2,119.51,119.49,5.5177866]
[1769369703182,4.30595187,119.58,119.51,4.43707805]